fUSD/lending_fUSD_20240515
["ID","MTS","AMOUNT","RATE_DAILY","PERIOD"]
[327107137,1715814654224,-500.0,0.00012876,2]
[327107138,1715814654233,-500.0,0.00012876,2]
[327107139,1715814654242,-500.0,0.00012876,2]
[327107140,1715814654251,-500.0,0.00012876,2]
[327107141,1715814654260,-500.0,0.00012876,2]
[327107142,1715814654271,-500.0,0.00012876,2]
[327107143,1715814654280,-500.0,0.00012876,2]
[327107144,1715814654290,-563.8341383,0.00012876,2]
[327107145,1715814654299,-510.11244078,0.00012876,2]
[327107146,1715814654308,-500.0,0.00012876,2]
[327107147,1715814654318,-500.0,0.00012876,2]
[327107148,1715814654327,-500.0,0.00012876,2]
[327107149,1715814654336,-500.0,0.00012876,2]
[327107150,1715814654345,-500.0,0.00012876,2]
[327107151,1715814654354,-500.0,0.00012876,2]
[327107152,1715814654364,-500.0,0.00012876,2]
[327107153,1715814654373,-500.0,0.00012876,2]
[327107154,1715814654382,-500.0,0.00012876,2]
[327107155,1715814654391,-500.0,0.00012876,2]
[327107156,1715814654400,-500.0,0.00012876,2]
[327107157,1715814654409,-500.0,0.00012876,2]
[327107158,1715814654418,-500.0,0.00012876,2]
[327107159,1715814654427,-505.65319381,0.00012876,2]
[327107160,1715814654436,-500.0,0.00012876,2]
[327107161,1715814654445,-506.96119772,0.00012876,2]
[327107162,1715814654454,-500.0,0.00012876,2]
[327107163,1715814654463,-580.32480506,0.00012876,2]
[327107164,1715814654473,-500.0,0.00012876,2]
[327107165,1715814654482,-500.0,0.00012876,2]
[327107166,1715814654491,-500.0,0.00012876,2]
[327107167,1715814654501,-500.0,0.00012876,2]
[327107168,1715814654510,-500.0,0.00012876,2]
[327107169,1715814654519,-500.0,0.00012876,2]
[327107170,1715814654528,-500.0,0.00012876,2]
[327107171,1715814654537,-1063.34,0.00012876,2]
[327107172,1715814654546,-500.0,0.00012876,2]
[327107173,1715814654555,-1063.34,0.00012876,2]
[327107174,1715814654564,-500.0,0.00012876,2]
[327107175,1715814654574,-500.0,0.00012876,2]
[327107176,1715814654583,-500.0,0.00012876,2]
[327107177,1715814654592,-500.0,0.00012876,2]
[327107178,1715814654601,-500.0,0.00012876,2]
[327107179,1715814654611,-500.0,0.00012876,2]
[327107180,1715814654623,-553.06,0.00012876,2]
[327107181,1715814654632,-500.0,0.00012876,2]
[327107182,1715814654642,-648.38,0.00012876,2]
[327107183,1715814654651,-648.38,0.00012876,2]
[327107184,1715814654662,-500.0,0.00012876,2]
[327107185,1715814654671,-500.0,0.00012876,2]
[327107186,1715814654679,-2672.63,0.00012876,2]
[327107187,1715814654689,-2672.63,0.00012876,2]
[327107188,1715814654701,-500.0,0.00012876,2]
[327107189,1715814654710,-2672.63,0.00012876,2]
[327107190,1715814654719,-500.0,0.00012876,2]
[327107191,1715814654728,-500.0,0.00012876,2]
[327107192,1715814654737,-500.0,0.00012876,2]
[327107193,1715814654747,-500.0,0.00012876,2]
[327107194,1715814654756,-500.0,0.00012876,2]
[327107195,1715814654765,-500.0,0.00012876,2]
[327107196,1715814654774,-500.0,0.00012876,2]
[327107197,1715814654783,-500.0,0.00012876,2]
[327107198,1715814654793,-500.0,0.00012876,2]
[327107199,1715814654802,-500.0,0.00012876,2]
[327107200,1715814654811,-504.62512657,0.00012876,2]
[327107201,1715814654821,-500.0,0.00012876,2]
[327107202,1715814654830,-500.0,0.00012876,2]
[327107203,1715814654839,-500.0,0.00012876,2]
[327107204,1715814654848,-500.0,0.00012876,2]
[327107205,1715814654858,-500.0,0.00012876,2]
[327107206,1715814654867,-500.0,0.00012876,2]
[327107207,1715814654877,-500.0,0.00012876,2]
[327107208,1715814654886,-500.0,0.00012876,2]
[327107209,1715814654896,-500.0,0.00012876,2]
[327107210,1715814654905,-500.0,0.00012876,2]
[327107211,1715814654914,-500.0,0.00012876,2]
[327107212,1715814654923,-500.0,0.00012876,2]
[327107213,1715814654933,-4791.02,0.00012876,2]
[327107214,1715814654942,-4791.02,0.00012876,2]
[327107215,1715814654951,-500.0,0.00012876,2]
[327107216,1715814654960,-500.0,0.00012876,2]
[327107217,1715814654969,-500.0,0.00012876,2]
[327107218,1715814654978,-500.0,0.00012876,2]
[327107219,1715814654987,-500.0,0.00012876,2]
[327107220,1715814654996,-500.0,0.00012876,2]
[327107221,1715814655006,-500.0,0.00012876,2]
[327107222,1715814655016,-500.0,0.00012876,2]
[327107223,1715814655025,-648.69,0.00012876,2]
[327107224,1715814655034,-500.0,0.00012876,2]
[327107225,1715814655043,-229.48293031,0.00012876,2]
[327107226,1715814655053,-500.0,0.00012876,2]
[327107227,1715814655062,-500.0,0.00012876,2]
[327107228,1715814655071,-500.0,0.00012876,2]
[327107229,1715814655080,-500.0,0.00012876,2]
[327107230,1715814655089,-500.0,0.00012876,2]
[327107231,1715814655099,-500.0,0.00012876,2]
[327107232,1715814655108,-500.0,0.00012876,2]
[327107233,1715814655118,-500.0,0.00012876,2]
[327107234,1715814655128,-500.0,0.00012876,2]
[327107235,1715814655137,-500.0,0.00012876,2]
[327107236,1715814655147,-500.0,0.00012876,2]
[327107237,1715814655156,-500.0,0.00012876,2]
[327107238,1715814655165,-500.0,0.00012884,2]
[327107239,1715814655174,-500.0,0.00012884,2]
[327107240,1715814655183,-500.0,0.00012884,2]
[327107241,1715814655192,-500.0,0.00012884,2]
[327107242,1715814655202,-500.0,0.00012884,2]
[327107243,1715814655211,-552.46142049,0.00012884,2]
[327107244,1715814655220,-500.0,0.00012884,2]
[327107245,1715814655230,-500.0,0.00012884,2]
[327107246,1715814655239,-377.92,0.00012884,2]
[327107247,1715814655249,-500.0,0.00012884,2]
[327107248,1715814655258,-354.31,0.00012884,2]
[327107249,1715814655267,-500.0,0.00012884,2]
[327107250,1715814655276,-500.0,0.00012884,2]
[327107251,1715814655286,-500.0,0.00012884,2]
[327107252,1715814655295,-566.01,0.00012884,2]
[327107253,1715814655304,-500.0,0.00012884,2]
[327107254,1715814655313,-500.0,0.00012884,2]
[327107255,1715814655323,-500.0,0.00012884,2]
[327107256,1715814655332,-500.0,0.00012884,2]
[327107257,1715814655341,-500.0,0.00012884,2]
[327107258,1715814655350,-619.13,0.00012884,2]
[327107259,1715814655359,-500.0,0.00012884,2]
[327107260,1715814655368,-500.0,0.00012884,2]
[327107261,1715814655377,-500.0,0.00012884,2]
[327107262,1715814655386,-500.0,0.00012884,2]
[327107263,1715814655395,-500.0,0.00012884,2]
[327107264,1715814655404,-500.0,0.00012884,2]
[327107265,1715814655413,-282.3,0.00012884,2]
[327107266,1715814655423,-195.74,0.00012884,2]
[327107267,1715814655432,-315.69,0.00012884,2]
[327107268,1715814655442,-162.67,0.00012884,2]
[327107269,1715814655451,-500.0,0.00012884,2]
[327107270,1715814655460,-221.76,0.00012884,2]
[327107271,1715814655470,-500.0,0.00012884,2]
[327107272,1715814655479,-200.0,0.00012895,2]
[327107273,1715814655489,-1000.0,0.00012895,2]
[327107274,1715814655498,-500.0,0.00012896,2]
[327107275,1715814655507,-500.0,0.00012896,2]
[327107276,1715814655517,-319.90782488,0.00012896,2]
[327107277,1715814655526,-500.0,0.00012896,2]
[327107278,1715814655535,-500.0,0.00012896,2]
[327107279,1715814655545,-500.0,0.00012896,2]
[327107280,1715814655555,-4425.44526103,0.00012898,2]
[327107281,1715814655564,-160.29,0.00012898,2]
[327107282,1715814655574,-243.72,0.00012898,2]
[327107283,1715814655584,-506.52,0.00012898,2]
[327107284,1715814655593,-165.22,0.00012898,2]
[327107285,1715814655603,-358.83,0.00012898,2]
[327107286,1715814655613,-422.8,0.00012898,2]
[327107287,1715814655628,-489.38,0.00012898,2]
[327107288,1715814655637,-186.36,0.00012898,2]
[327107289,1715814655647,-503.78,0.00012898,2]
[327107290,1715814655656,-500.0,0.00012898,2]
[327107291,1715814655667,-252.85,0.00012898,2]
[327107292,1715814655677,-239.17,0.00012898,2]
[327107293,1715814655686,-500.0,0.00012898,2]
[327107294,1715814655695,-500.0,0.00012898,2]
[327107295,1715814655706,-500.0,0.00012898,2]
[327107296,1715814655716,-500.0,0.00012898,2]
[327107297,1715814655725,-500.0,0.00012898,2]
[327107298,1715814655735,-500.0,0.00012898,2]
[327107299,1715814655744,-500.0,0.00012898,2]
[327107300,1715814655754,-500.0,0.00012898,2]
[327107301,1715814655763,-584.69,0.00012898,2]
[327107302,1715814655772,-500.0,0.00012898,2]
[327107303,1715814655781,-500.0,0.00012898,2]
[327107304,1715814655790,-500.0,0.00012898,2]
[327107305,1715814655800,-500.0,0.00012898,2]
[327107306,1715814655809,-500.0,0.00012898,2]
[327107307,1715814655820,-500.0,0.00012898,2]
[327107308,1715814655830,-500.0,0.00012898,2]
[327107309,1715814655839,-616.77,0.00012898,2]
[327107310,1715814655849,-235.96,0.00012898,2]
[327107311,1715814655859,-475.97,0.00012898,2]
[327107312,1715814655868,-157.06,0.00012898,2]
[327107313,1715814655878,-642.35,0.00012898,2]
[327107314,1715814655887,-208.2,0.00012898,2]
[327107315,1715814655897,-358.99,0.00012898,2]
[327107316,1715814655907,-500.0,0.00012898,2]
[327107317,1715814655917,-500.0,0.00012898,2]
[327107318,1715814655926,-500.0,0.00012898,2]
[327107319,1715814655936,-152.52,0.00012898,2]
[327107320,1715814655946,-500.0,0.00012898,2]
[327107321,1715814655956,-500.0,0.00012898,2]
[327107322,1715814655965,-500.0,0.00012898,2]
[327107323,1715814655976,-500.0,0.00012898,2]
[327107324,1715814655985,-500.0,0.00012898,2]
[327107325,1715814655995,-500.0,0.00012898,2]
[327107326,1715814656005,-500.0,0.00012898,2]
[327107327,1715814656014,-500.0,0.00012898,2]
[327107328,1715814656023,-500.0,0.00012898,2]
[327107329,1715814656032,-507.44175239,0.00012898,2]
[327107330,1715814656042,-5707.9215,0.00012899,2]
[327107331,1715814656051,-500.0,0.00012899,2]
[327107332,1715814656060,-500.0,0.00012899,2]
[327107333,1715814656070,-500.0,0.00012899,2]
[327107334,1715814656080,-500.0,0.00012899,2]
[327107335,1715814656089,-500.0,0.00012899,2]
[327107336,1715814656098,-500.0,0.00012899,2]
[327107337,1715814656107,-500.0,0.00012899,2]
[327107338,1715814656117,-500.0,0.00012899,2]
[327107339,1715814656127,-500.0,0.00012899,2]
[327107340,1715814656137,-500.0,0.00012899,2]
[327107341,1715814656147,-351.27,0.00012899,2]
[327107342,1715814656156,-500.0,0.00012899,2]
[327107343,1715814656166,-174.64,0.00012899,2]
[327107344,1715814656178,-606.93,0.00012899,2]
[327107345,1715814656187,-500.0,0.00012899,2]
[327107346,1715814656196,-337.86,0.00012899,2]
[327107347,1715814656206,-500.0,0.00012899,2]
[327107348,1715814656215,-315.76116584,0.00012899,2]
[327107349,1715814656224,-641.55,0.00012899,2]
[327107350,1715814656234,-191.16953814,0.00012899,2]
[327107351,1715814656243,-590.74,0.00012899,2]
[327107352,1715814656252,-542.06,0.00012899,2]
[327107353,1715814656261,-482.67,0.00012899,2]
[327107354,1715814656271,-500.0,0.00012899,2]
[327107355,1715814656281,-500.0,0.00012899,2]
[327107356,1715814656290,-278.72,0.00012899,2]
[327107357,1715814656299,-279.61,0.00012899,2]
[327107358,1715814656308,-500.0,0.00012899,2]
[327107359,1715814656318,-313.11,0.00012899,2]
[327107360,1715814656327,-500.0,0.00012899,2]
[327107361,1715814656336,-525.6,0.00012899,2]
[327107362,1715814656347,-500.0,0.00012899,2]
[327107363,1715814656358,-349.77,0.00012899,2]
[327107364,1715814656369,-264.66,0.00012899,2]
[327107365,1715814656379,-163.41,0.00012899,2]
[327107366,1715814656390,-500.0,0.00012899,2]
[327107367,1715814656400,-593.88,0.00012899,2]
[327107368,1715814656411,-226.8,0.00012899,2]
[327107369,1715814656423,-351.14,0.00012899,2]
[327107370,1715814656434,-175.62,0.00012899,2]
[327107371,1715814656443,-291.65,0.00012899,2]
[327107372,1715814656452,-551.73,0.00012899,2]
[327107373,1715814656462,-500.0,0.00012899,2]
[327107374,1715814656471,-341.04,0.00012899,2]
[327107375,1715814656480,-500.0,0.00012899,2]
[327107376,1715814656489,-500.0,0.00012899,2]
[327107377,1715814656499,-500.0,0.00012899,2]
[327107378,1715814656508,-551.22,0.00012899,2]
[327107379,1715814656518,-500.0,0.00012899,2]
[327107380,1715814656528,-456.77,0.00012899,2]
[327107381,1715814656538,-262.36,0.00012899,2]
[327107382,1715814656547,-500.0,0.00012899,2]
[327107383,1715814656557,-390.68,0.00012899,2]
[327107384,1715814656567,-438.48,0.00012899,2]
[327107385,1715814656576,-503.45,0.00012899,2]
[327107386,1715814656586,-500.0,0.00012899,2]
[327107387,1715814656595,-231.05741318,0.00012899,2]
[327107388,1715814656606,-288.86,0.00012899,2]
[327107389,1715814656621,-583.35,0.00012899,2]
[327107390,1715814656630,-405.12210711,0.000129,2]
[327107391,1715814656640,-173.31328606,0.000129,2]
[327107392,1715814656650,-273.23801481,0.000129,2]
[327107393,1715814656662,-273.2380148,0.000129,2]
[327107394,1715814656671,-273.2380148,0.000129,2]
[327107395,1715814656681,-273.2380148,0.000129,2]
[327107396,1715814656691,-273.2380148,0.000129,2]
[327107397,1715814656701,-273.2380148,0.000129,2]
[327107398,1715814656710,-273.2380148,0.000129,2]
[327107399,1715814656720,-273.2380148,0.000129,2]
[327107400,1715814656730,-10189.62278352,0.000129,2]
[327107401,1715814656740,-881.14539351,0.000129,2]
[327107402,1715814656749,-1375.0,0.000129,2]
[327107403,1715814656759,-150.58772116,0.000129,2]
[327107404,1715814656768,-663.04,0.00012923,2]
[327107405,1715814656778,-612.56,0.00012934,2]
[327107406,1715814656787,-500.0,0.00012934,2]
[327107407,1715814656797,-500.0,0.00012934,2]
[327107408,1715814656807,-460.11,0.00012934,2]
[327107409,1715814656816,-500.0,0.00012934,2]
[327107410,1715814656826,-2232.21018442,0.0001299,2]
[327107411,1715814656835,-172.60704772,0.00012992,2]
[327107412,1715814656845,-500.0,0.00012992,2]
[327107413,1715814656854,-500.0,0.00012992,2]
[327107414,1715814656864,-500.0,0.00012992,2]
[327107415,1715814656874,-500.0,0.00012992,2]
[327107416,1715814656884,-500.0,0.00012992,2]
[327107417,1715814656893,-500.0,0.00012992,2]
[327107418,1715814656903,-500.0,0.00012992,2]
[327107419,1715814656912,-500.0,0.00012992,2]
[327107420,1715814656922,-634.06,0.00012993,2]
[327107421,1715814656932,-222.94,0.00012993,2]
[327107422,1715814656941,-291.08,0.00012993,2]
[327107423,1715814656951,-500.0,0.00012993,2]
[327107424,1715814656960,-500.0,0.00012993,2]
[327107425,1715814656970,-591.91,0.00012993,2]
[327107426,1715814656980,-500.0,0.00012993,2]
[327107427,1715814656990,-500.0,0.00012993,2]
[327107428,1715814656999,-543.11,0.00012993,2]
[327107429,1715814657009,-538.89780545,0.00012994,2]
[327107430,1715814657019,-500.0,0.00012994,2]
[327107431,1715814657029,-500.0,0.00012994,2]
[327107432,1715814657038,-500.0,0.00012994,2]
[327107433,1715814657048,-500.0,0.00012994,2]
[327107434,1715814657058,-500.0,0.00012994,2]
[327107435,1715814657068,-500.0,0.00012994,2]
[327107436,1715814657077,-500.0,0.00012994,2]
[327107437,1715814657087,-500.0,0.00012994,2]
[327107438,1715814657096,-353.79,0.00012994,2]
[327107439,1715814657105,-500.0,0.00012994,2]
[327107440,1715814657115,-172.26,0.00012994,2]
[327107441,1715814657124,-394.52,0.00012994,2]
[327107442,1715814657134,-568.28,0.00012994,2]
[327107443,1715814657143,-500.0,0.00012994,2]
[327107444,1715814657153,-552.14,0.00012994,2]
[327107445,1715814657162,-339.4,0.00012994,2]
[327107446,1715814657172,-626.84,0.00012995,2]
[327107447,1715814657182,-500.0,0.00012995,2]
[327107448,1715814657200,-316.8,0.00012995,2]
[327107449,1715814657213,-500.0,0.00012995,2]
[327107450,1715814657224,-500.0,0.00012995,2]
[327107451,1715814657235,-500.0,0.00012995,2]
[327107452,1715814657247,-155.0,0.00012996,2]
[327107453,1715814657257,-500.0,0.00012996,2]
[327107454,1715814657268,-500.0,0.00012996,2]
[327107455,1715814657278,-500.0,0.00012996,2]
[327107456,1715814657288,-447.8,0.00012996,2]
[327107457,1715814657299,-500.0,0.00012996,2]
[327107458,1715814657309,-500.0,0.00012996,2]
[327107459,1715814657320,-500.0,0.00012996,2]
[327107460,1715814657330,-500.0,0.00012996,2]
[327107461,1715814657341,-187.76,0.00012996,2]
[327107462,1715814657351,-340.8,0.00012996,2]
[327107464,1715814657364,-500.0,0.00012996,2]
[327107465,1715814657374,-500.0,0.00012996,2]
[327107466,1715814657384,-309.82,0.00012996,2]
[327107467,1715814657394,-412.9,0.00012996,2]
[327107468,1715814657404,-500.0,0.00012996,2]
[327107469,1715814657415,-500.0,0.00012996,2]
[327107470,1715814657425,-500.0,0.00012996,2]
[327107471,1715814657435,-421.83,0.00012996,2]
[327107472,1715814657445,-157.051608,0.00012996,2]
[327107473,1715814657455,-157.051608,0.00012996,2]
[327107474,1715814657465,-157.051608,0.00012996,2]
[327107475,1715814657476,-157.051608,0.00012996,2]
[327107476,1715814657487,-157.051608,0.00012996,2]
[327107477,1715814657673,-157.051608,0.00012996,2]
[327107478,1715814657683,-464.36,0.00012996,2]
[327107479,1715814657693,-554.67,0.00012996,2]
[327107480,1715814657705,-402.14,0.00012996,2]
[327107481,1715814657715,-500.0,0.00012996,2]
[327107482,1715814657725,-151.0,0.00012996,2]
[327107483,1715814657734,-500.0,0.00012996,2]
[327107484,1715814657744,-500.0,0.00012996,2]
[327107485,1715814657752,-151.0,0.00012996,2]
[327107487,1715814657762,-504.62504059,0.00012996,2]
[327107488,1715814657771,-151.721786,0.00012996,2]
[327107489,1715814657780,-500.0,0.00012996,2]
[327107490,1715814657789,-500.0,0.00012996,2]
[327107491,1715814657798,-151.0,0.00012996,2]
[327107492,1715814657807,-527.84,0.00012996,2]
[327107493,1715814657816,-151.0,0.00012996,2]
[327107494,1715814657825,-152.104996,0.00012996,2]
[327107495,1715814657835,-151.0,0.00012996,2]
[327107496,1715814657844,-500.0,0.00012996,2]
[327107497,1715814657853,-500.0,0.00012996,2]
[327107498,1715814657862,-500.0,0.00012996,2]
[327107499,1715814657871,-500.0,0.00012996,2]
[327107500,1715814657879,-500.0,0.00012996,2]
[327107501,1715814657889,-278.2452,0.00012996,2]
[327107502,1715814657898,-198.30736,0.00012996,2]
[327107503,1715814657907,-151.0,0.00012996,2]
[327107504,1715814657915,-500.0,0.00012996,2]
[327107505,1715814657924,-553.15,0.00012996,2]
[327107506,1715814657933,-500.0,0.00012996,2]
[327107507,1715814657942,-500.0,0.00012996,2]
[327107508,1715814657951,-2672.63,0.00012996,2]
[327107509,1715814657960,-500.0,0.00012996,2]
[327107510,1715814657974,-525.0,0.00012997,2]
[327107511,1715814657983,-500.0,0.00012997,2]
[327107512,1715814657992,-563.82,0.00012997,2]
[327107513,1715814658002,-500.0,0.00012997,2]
[327107514,1715814658012,-188.79,0.00012997,2]
[327107515,1715814658021,-418.94,0.00012997,2]
[327107516,1715814658031,-500.0,0.00012997,2]
[327107517,1715814658041,-500.0,0.00012997,2]
[327107518,1715814658050,-603.92688297,0.00012997,2]
[327107519,1715814658059,-500.0,0.00012997,2]
[327107520,1715814658069,-500.0,0.00012997,2]
[327107521,1715814658078,-500.0,0.00012997,2]
[327107522,1715814658087,-444.66,0.00012997,2]
[327107523,1715814658096,-500.0,0.00012997,2]
[327107524,1715814658108,-500.0,0.00012997,2]
[327107525,1715814658119,-500.0,0.00012997,2]
[327107526,1715814658128,-500.0,0.00012997,2]
[327107527,1715814658137,-399.59,0.00012997,2]
[327107528,1715814658146,-500.0,0.00012997,2]
[327107529,1715814658155,-500.0,0.00012997,2]
[327107530,1715814658166,-367.61,0.00012997,2]
[327107531,1715814658174,-500.0,0.00012997,2]
[327107532,1715814658184,-170.93,0.00012997,2]
[327107533,1715814658193,-500.0,0.00012997,2]
[327107534,1715814658205,-567.64,0.00012997,2]
[327107535,1715814658215,-500.0,0.00012997,2]
[327107536,1715814658224,-500.0,0.00012997,2]
[327107537,1715814658234,-602.26,0.00012997,2]
[327107538,1715814658244,-500.0,0.00012997,2]
[327107539,1715814658253,-500.0,0.00012997,2]
[327107540,1715814658262,-500.0,0.00012997,2]
[327107541,1715814658272,-508.24,0.00012997,2]
[327107542,1715814658282,-500.0,0.00012997,2]
[327107543,1715814658291,-500.0,0.00012997,2]
[327107544,1715814658300,-500.0,0.00012997,2]
[327107545,1715814658310,-322.82059365,0.00012997,2]
[327107546,1715814658319,-500.0,0.00012997,2]
[327107547,1715814658329,-500.0,0.00012997,2]
[327107548,1715814658339,-162.71,0.00012997,2]
[327107549,1715814658348,-500.0,0.00012997,2]
[327107550,1715814658358,-396.4,0.00012997,2]
[327107551,1715814658367,-157.051608,0.00012997,2]
[327107552,1715814658377,-157.051608,0.00012997,2]
[327107553,1715814658386,-157.051608,0.00012997,2]
[327107554,1715814658395,-157.051608,0.00012997,2]
[327107555,1715814658405,-157.051608,0.00012997,2]
[327107556,1715814658415,-150.0,0.00012997,2]
[327107557,1715814658424,-405.04,0.00012997,2]
[327107558,1715814658434,-500.0,0.00012997,2]
[327107559,1715814658443,-500.0,0.00012997,2]
[327107560,1715814658453,-157.051608,0.00012997,2]
[327107561,1715814658463,-186.49,0.00012997,2]
[327107562,1715814658473,-398.61,0.00012997,2]
[327107563,1715814658482,-157.051608,0.00012997,2]
[327107564,1715814658492,-500.0,0.00012997,2]
[327107565,1715814658501,-500.0,0.00012997,2]
[327107566,1715814658511,-500.0,0.00012997,2]
[327107567,1715814658520,-369.73,0.00012997,2]
[327107568,1715814658530,-595.83,0.00012997,2]
[327107569,1715814658539,-345.0,0.00012997,2]
[327107570,1715814658548,-233.15,0.00012997,2]
[327107571,1715814658557,-500.0,0.00012997,2]
[327107572,1715814658568,-500.0,0.00012997,2]
[327107573,1715814658578,-500.0,0.00012997,2]
[327107574,1715814658587,-500.0,0.00012997,2]
[327107575,1715814658597,-500.0,0.00012997,2]
[327107576,1715814658606,-500.0,0.00012997,2]
[327107577,1715814658620,-585.89,0.00012997,2]
[327107578,1715814658629,-277.89463797,0.00012997,2]
[327107579,1715814658638,-500.0,0.00012997,2]
[327107580,1715814658648,-500.0,0.00012997,2]
[327107581,1715814658659,-500.0,0.00012997,2]
[327107582,1715814658668,-500.0,0.00012997,2]
[327107583,1715814658678,-500.0,0.00012997,2]
[327107584,1715814658687,-500.0,0.00012997,2]
[327107585,1715814658700,-500.0,0.00012997,2]
[327107586,1715814658710,-500.0,0.00012997,2]
[327107587,1715814658720,-500.0,0.00012997,2]
[327107588,1715814658729,-393.68330928,0.00012997,2]
[327107589,1715814658739,-403.85,0.00012997,2]
[327107590,1715814658748,-500.0,0.00012997,2]
[327107591,1715814658758,-500.0,0.00012997,2]
[327107592,1715814658767,-583.01,0.00012997,2]
[327107593,1715814658777,-370.98,0.00012997,2]
[327107594,1715814658788,-326.16,0.00012997,2]
[327107595,1715814658797,-647.41,0.00012997,2]
[327107596,1715814658807,-151.0,0.00012997,2]
[327107597,1715814658817,-500.0,0.00012997,2]
[327107598,1715814658828,-461.73,0.00012997,2]
[327107599,1715814658837,-500.0,0.00012997,2]
[327107600,1715814658846,-218.010578,0.00012997,2]
[327107601,1715814658856,-151.0,0.00012997,2]
[327107602,1715814658866,-151.0,0.00012997,2]
[327107603,1715814658875,-151.0,0.00012997,2]
[327107604,1715814658885,-500.0,0.00012997,2]
[327107605,1715814658894,-253.47,0.00012997,2]
[327107606,1715814658903,-500.0,0.00012997,2]
[327107607,1715814658913,-151.0,0.00012997,2]
[327107608,1715814658923,-500.0,0.00012997,2]
[327107609,1715814658933,-500.0,0.00012997,2]
[327107610,1715814658943,-151.0,0.00012997,2]
[327107611,1715814658954,-500.0,0.00012997,2]
[327107612,1715814658964,-168.31,0.00012997,2]
[327107613,1715814658974,-500.0,0.00012997,2]
[327107614,1715814658983,-500.0,0.00012997,2]
[327107615,1715814658993,-500.0,0.00012997,2]
[327107616,1715814659002,-500.0,0.00012997,2]
[327107617,1715814659011,-401.12,0.00012997,2]
[327107618,1715814659022,-212.69,0.00012997,2]
[327107619,1715814659031,-500.0,0.00012997,2]
[327107620,1715814659040,-557.13,0.00012997,2]
[327107621,1715814659051,-500.0,0.00012997,2]
[327107622,1715814659062,-500.0,0.00012997,2]
[327107623,1715814659072,-500.0,0.00012997,2]
[327107624,1715814659082,-500.0,0.00012997,2]
[327107625,1715814659091,-500.0,0.00012997,2]
[327107626,1715814659101,-151.0,0.00012997,2]
[327107627,1715814659111,-500.0,0.00012997,2]
[327107628,1715814659122,-500.0,0.00012997,2]
[327107629,1715814659132,-151.0,0.00012997,2]
[327107630,1715814659141,-500.0,0.00012997,2]
[327107631,1715814659151,-500.0,0.00012997,2]
[327107632,1715814659160,-500.0,0.00012997,2]
[327107633,1715814659169,-500.0,0.00012997,2]
[327107634,1715814659179,-224.67,0.00012997,2]
[327107635,1715814659188,-500.0,0.00012997,2]
[327107636,1715814659197,-500.0,0.00012997,2]
[327107637,1715814659207,-500.0,0.00012997,2]
[327107638,1715814659215,-500.0,0.00012997,2]